[Event "26th Hit Open-A 2022"]
[Site "Nova Gorica"]
[Date "2022.09.17"]
[Round "2.14"]
[White "Thavandiran, Shiyam"]
[Black "Goroshkov, Maksym"]
[Result "1-0"]
[ECO "C42"]
[WhiteElo "2363"]
[BlackElo "2315"]
[Annotator "ChessBase"]
[PlyCount "117"]
[EventDate "2022.09.16"]
[EventType "swiss"]
[EventCountry "SLO"]
[SourceTitle "playchess.com"]
[Source "ChessBase"]
[SourceQuality "1"]
[TimeControl "5400+30"]

1. e4 {[%emt 0:07:02]} e5 {[%emt 0:00:46]} 2. Nf3 {[%emt 0:00:54]} Nc6 {[%emt 0:00:12]} 3. Nc3 {[%emt 0:01:26]} Nf6 {[%emt 0:00:34]} 4. h3 {[%emt 0:00:28]} d6 {[%emt 0:07:23]} 5. d4 {[%emt 0:00:54]} exd4 {[%emt 0:00:23]} 6. Nxd4 {[%emt 0:00:06]} Be7 {[%emt 0:00:30]} 7. Nde2 {[%emt 0:17:44]} O-O {[%emt 0:02:30]} 8. g4 {[%emt 0:10:13]} Be6 {[%emt 0:14:29]} 9. Nf4 {[%emt 0:10:06]} Nd7 {[%emt 0:08:34]} 10. Bg2 {[%emt 0:07:53]} Bc4 {[%emt 0:02:09]} 11. Nfd5 {[%emt 0:11:44]} Bf6 {[%emt 0:04:06]} 12. Nxf6+ {[%emt 0:01:29]} Qxf6 {[%emt 0:01:29]} 13. Be3 {[%emt 0:04:13]} Nc5 {[%emt 0:05:04]} 14. Qd2 {[%emt 0:09:56]} Ne6 {[%emt 0:06:22]} 15. g5 {[%emt 0:03:01]} Qd8 {[%emt 0:02:24]} 16. b3 {[%emt 0:03:01]} Ba6 {[%emt 0:00:10]} 17. Nd5 {[%emt 0:00:10]} Ne7 {[%emt 0:01:20]} 18. O-O-O {[%emt 0:00:48]} Nxd5 {[%emt 0:00:59]} 19. exd5 {[%emt 0:03:12]} Nc5 {[%emt 0:00:05]} 20. Bd4 {[%emt 0:00:21]} Re8 {[%emt 0:00:52]} 21. h4 {[%emt 0:00:43]} Nd7 {[%emt 0:16:36]} 22. Bh3 {[%emt 0:02:39]} Ne5 {[%emt 0:01:45]} 23. Bb2 {[%emt 0:01:56]} Re7 {[%emt 0:02:08]} 24. Qd4 {[%emt 0:01:28]} Qf8 {[%emt 0:00:02]} 25. Qc3 {[%emt 0:01:00]} Be2 {[%emt 0:00:20]} 26. Rde1 {[%emt 0:00:08]} Rae8 {[%emt 0:00:58]} 27. f4 {[%emt 0:00:43]} Nf3 {[%emt 0:00:22]} 28. Rxe2 {[%emt 0:00:08]} Rxe2 {[%emt 0:00:06]} 29. Qxf3 {[%emt 0:00:04]} R8e3 {[%emt 0:00:11]} 30. Qg4 {[%emt 0:00:17]} Qe8 {[%emt 0:00:02]} 31. Qc8 {[%emt 0:01:41]} Re1+ {[%emt 0:00:08]} 32. Rxe1 {[%emt 0:00:04]} Rxe1+ {[%emt 0:00:03]} 33. Kd2 {[%emt 0:00:06]} Re2+ {[%emt 0:00:02]} 34. Kd1 {[%emt 0:00:26]} Re1+ {[%emt 0:00:02]} 35. Kd2 {[%emt 0:00:05]} Re2+ {[%emt 0:00:01]} 36. Kd3 {[%emt 0:01:43]} Re3+ {[%emt 0:00:05]} 37. Kd4 {[%emt 0:00:33]} Re4+ {[%emt 0:00:20]} 38. Kc3 {[%emt 0:00:32]} Qxc8 {[%emt 0:02:20]} 39. Bxc8 {[%emt 0:00:02]} b6 {[%emt 0:00:06]} 40. Bc1 {[%emt 0:00:19]} Re1 {[%emt 0:00:35]} 41. Bd2 {[%emt 0:00:34]} Rh1 {[%emt 0:00:02]} 42. Bf5 {[%emt 0:00:27]} Rxh4 {[%emt 0:00:47]} 43. Kb4 {[%emt 0:00:58]} Rh2 {[%emt 0:00:03]} 44. Be3 {[%emt 0:00:27]} Re2 {[%emt 0:00:20]} 45. Bd4 {[%emt 0:00:14]} Rd2 {[%emt 0:00:04]} 46. Bd3 {[%emt 0:00:38]} h5 {[%emt 0:00:01]} 47. gxh6 {[%emt 0:00:05]} gxh6 {[%emt 0:00:05]} 48. Kb5 {[%emt 0:00:33]} h5 {[%emt 0:01:19]} 49. Bf6 {[%emt 0:00:15]} Rf2 {[%emt 0:00:04]} 50. f5 {[%emt 0:01:16]} Rf4 {[%emt 0:00:12]} 51. Kc6 {[%emt 0:00:40]} h4 {[%emt 0:00:02]} 52. Bxh4 {[%emt 0:00:20]} Rxh4 {[%emt 0:00:04]} 53. Kxc7 {[%emt 0:00:05]} Kg7 {[%emt 0:00:31]} 54. Kxd6 {[%emt 0:01:01]} Kf6 {[%emt 0:00:20]} 55. Kc7 {[%emt 0:00:15]} Rd4 {[%emt 0:00:06]} 56. d6 {[%emt 0:00:07]} Rd5 {[%emt 0:00:11]} 57. b4 {[%emt 0:00:11]} Rd4 {[%emt 0:00:49]} 58. d7 {[%emt 0:00:20]} Ke7 {[%emt 0:00:08]} 59. f6+ {[%emt 0:00:04]} 1-0

[Event "26th Hit Open-A 2022"]
[Site "Nova Gorica"]
[Date "2022.09.17"]
[Round "2.15"]
[White "Bauer, Thomas"]
[Black "Brilej, Jaka"]
[Result "0-1"]
[ECO "B11"]
[WhiteElo "2200"]
[BlackElo "2329"]
[Annotator "ChessBase"]
[PlyCount "74"]
[EventDate "2022.09.16"]
[EventType "swiss"]
[EventCountry "SLO"]
[SourceTitle "playchess.com"]
[Source "ChessBase"]
[SourceQuality "1"]
[TimeControl "5400+30"]

1. e4 {[%emt 0:00:02]} c6 {[%emt 0:00:07]} 2. Nc3 {[%emt 0:00:26]} d5 {[%emt 0:00:07]} 3. Nf3 {[%emt 0:00:05]} Bg4 {[%emt 0:00:17]} 4. d4 {[%emt 0:00:03]} e6 {[%emt 0:03:10]} 5. h3 {[%emt 0:01:25]} Bxf3 {[%emt 0:00:10]} 6. gxf3 {[%emt 0:00:05]} Nf6 {[%emt 0:07:31]} 7. Qd3 {[%emt 0:00:17]} Na6 {[%emt 0:04:29]} 8. Be3 {[%emt 0:07:18]} Qa5 {[%emt 0:05:21]} 9. a3 {[%emt 0:12:09]} O-O-O {[%emt 0:04:57]} 10. Qd1 {[%emt 0:10:31]} dxe4 {[%emt 0:11:24]} 11. b4 {[%emt 0:00:02]} Qf5 {[%emt 0:01:00]} 12. Rg1 {[%emt 0:12:30]} Nc7 {[%emt 0:10:40]} 13. Rg5 {[%emt 0:03:32]} Qxf3 {[%emt 0:00:09]} 14. Qd2 {[%emt 0:00:02]} Nfd5 {[%emt 0:02:00]} 15. Bg2 {[%emt 0:05:13]} Qf6 {[%emt 0:00:07]} 16. Nxe4 {[%emt 0:01:36]} Qe7 {[%emt 0:00:06]} 17. c4 {[%emt 0:00:40]} Nxe3 {[%emt 0:00:35]} 18. Qxe3 {[%emt 0:00:23]} f5 {[%emt 0:03:31]} 19. Nc5 {[%emt 0:01:33]} Qf6 {[%emt 0:01:39]} 20. Nxb7 {[%emt 0:05:26]} Kxb7 {[%emt 0:06:52]} 21. Rd1 {[%emt 0:04:39]} Bd6 {[%emt 0:05:18]} 22. f4 {[%emt 0:05:31]} h6 {[%emt 0:03:55]} 23. Rg3 {[%emt 0:02:08]} g5 {[%emt 0:00:17]} 24. Qf3 {[%emt 0:00:47]} Nd5 {[%emt 0:00:52]} 25. cxd5 {[%emt 0:01:01]} exd5 {[%emt 0:00:31]} 26. Qb3 {[%emt 0:03:28]} Bxf4 {[%emt 0:03:56]} 27. Rc3 {[%emt 0:00:01]} Rhe8+ {[%emt 0:01:07]} 28. Kf1 {[%emt 0:00:01]} Qe6 {[%emt 0:01:06]} 29. Rc2 {[%emt 0:00:03]} a6 {[%emt 0:01:59]} 30. Bf3 {[%emt 0:06:48]} g4 {[%emt 0:08:23]} 31. Be2 {[%emt 0:03:28]} Qe4 {[%emt 0:00:00]} 32. Bxa6+ {[%emt 0:00:06]} Kb6 {[%emt 0:01:44]} 33. Rxc6+ {[%emt 0:03:27]} Kxc6 {[%emt 0:00:16]} 34. Qc3+ {[%emt 0:00:35]} Kd6 {[%emt 0:00:59]} 35. Qc5+ {[%emt 0:02:02]} Ke6 {[%emt 0:00:09]} 36. Re1 {[%emt 0:05:54]} Be3 {[%emt 0:00:08]} 37. Ke2 {[%emt 0:00:07]} Bxd4+ {[%emt 0:00:22]} 0-1

[Event "26th Hit Open-A 2022"]
[Site "Nova Gorica"]
[Date "2022.09.17"]
[Round "2.16"]
[White "Lohia, Sohum"]
[Black "Lodici, Lorenzo"]
[Result "0-1"]
[ECO "C77"]
[WhiteElo "2185"]
[BlackElo "2559"]
[Annotator "ChessBase"]
[PlyCount "108"]
[EventDate "2022.09.16"]
[EventType "swiss"]
[EventCountry "SLO"]
[SourceTitle "playchess.com"]
[Source "ChessBase"]
[SourceQuality "1"]
[TimeControl "5400+30"]

1. e4 {[%emt 0:00:07]} e5 {[%emt 0:00:21]} 2. Nf3 {[%emt 0:00:07]} Nc6 {[%emt 0:00:07]} 3. Bb5 {[%emt 0:00:10]} a6 {[%emt 0:00:06]} 4. Ba4 {[%emt 0:00:10]} Nf6 {[%emt 0:00:09]} 5. d3 {[%emt 0:00:15]} d6 {[%emt 0:00:08]} 6. c3 {[%emt 0:00:16]} g6 {[%emt 0:00:05]} 7. O-O {[%emt 0:00:14]} Bg7 {[%emt 0:00:04]} 8. Re1 {[%emt 0:00:17]} O-O {[%emt 0:00:06]} 9. Nbd2 {[%emt 0:00:18]} Re8 {[%emt 0:02:56]} 10. h3 {[%emt 0:01:23]} h6 {[%emt 0:00:48]} 11. Nf1 {[%emt 0:00:47]} b5 {[%emt 0:03:39]} 12. Bc2 {[%emt 0:00:21]} Nb8 {[%emt 0:00:30]} 13. d4 {[%emt 0:04:45]} Nbd7 {[%emt 0:00:07]} 14. Ng3 {[%emt 0:02:13]} c5 {[%emt 0:00:33]} 15. d5 {[%emt 0:01:59]} Nb6 {[%emt 0:03:15]} 16. b3 {[%emt 0:03:36]} a5 {[%emt 0:02:03]} 17. Bd3 {[%emt 0:05:01]} c4 {[%emt 0:07:44]} 18. bxc4 {[%emt 0:00:34]} bxc4 {[%emt 0:00:14]} 19. Bc2 {[%emt 0:02:00]} Qc7 {[%emt 0:18:40]} 20. Be3 {[%emt 0:01:18]} Ba6 {[%emt 0:04:12]} 21. h4 {[%emt 0:14:48]} Ng4 {[%emt 0:05:40]} 22. h5 {[%emt 0:00:58]} Nxe3 {[%emt 0:00:06]} 23. Rxe3 {[%emt 0:00:06]} Qe7 {[%emt 0:03:04]} 24. Nh2 {[%emt 0:06:45]} Rf8 {[%emt 0:02:27]} 25. Qg4 {[%emt 0:01:49]} Bc8 {[%emt 0:01:07]} 26. Qf3 {[%emt 0:12:46]} Bf6 {[%emt 0:02:47]} 27. Ree1 {[%emt 0:03:34]} Ba6 {[%emt 0:02:11]} 28. Rab1 {[%emt 0:00:13]} Rab8 {[%emt 0:01:32]} 29. Ng4 {[%emt 0:03:25]} Bg5 {[%emt 0:00:08]} 30. Ne3 {[%emt 0:00:34]} Nd7 {[%emt 0:05:05]} 31. Ba4 {[%emt 0:09:40]} Nc5 {[%emt 0:00:18]} 32. Bc6 {[%emt 0:00:20]} Nd3 {[%emt 0:03:17]} 33. Rf1 {[%emt 0:01:18]} Qa7 {[%emt 0:01:03]} 34. Qe2 {[%emt 0:01:56]} Bf4 {[%emt 0:13:15]} 35. Qf3 {[%emt 0:03:21]} Nc5 {[%emt 0:03:00]} 36. Ne2 {[%emt 0:04:43]} Bg5 {[%emt 0:00:30]} 37. Ng3 {[%emt 0:02:04]} Nd3 {[%emt 0:04:32]} 38. Qe2 {[%emt 0:00:33]} Kh7 {[%emt 0:01:17]} 39. Qf3 {[%emt 0:01:35]} Kg7 {[%emt 0:01:22]} 40. Qe2 {[%emt 0:00:23]} Rb6 {[%emt 0:00:43]} 41. Rxb6 {[%emt 0:04:47]} Qxb6 {[%emt 0:00:04]} 42. Rd1 {[%emt 0:00:35]} a4 {[%emt 0:03:45]} 43. Ngf1 {[%emt 0:02:35]} a3 {[%emt 0:03:08]} 44. Qc2 {[%emt 0:01:00]} Rb8 {[%emt 0:01:19]} 45. Rd2 {[%emt 0:01:36]} Qb2 {[%emt 0:03:33]} 46. Qa4 {[%emt 0:00:32]} Nc5 {[%emt 0:00:06]} 47. Qd1 {[%emt 0:00:32]} Qxc3 {[%emt 0:00:13]} 48. Rc2 {[%emt 0:00:33]} Qb4 {[%emt 0:00:15]} 49. f3 {[%emt 0:00:24]} Nd3 {[%emt 0:00:43]} 50. hxg6 {[%emt 0:00:14]} fxg6 {[%emt 0:00:12]} 51. Ng4 {[%emt 0:01:20]} Qc5+ {[%emt 0:00:24]} 52. Kh1 {[%emt 0:00:14]} c3 {[%emt 0:00:25]} 53. Qa1 {[%emt 0:00:57]} Rb2 {[%emt 0:00:09]} 54. Nfe3 {[%emt 0:00:50]} Bxe3 {[%emt 0:00:15]} 0-1

[Event "26th Hit Open-A 2022"]
[Site "Nova Gorica"]
[Date "2022.09.17"]
[Round "2.17"]
[White "Subelj, Jan"]
[Black "Krivenko, Dion"]
[Result "1-0"]
[ECO "C02"]
[WhiteElo "2505"]
[BlackElo "2113"]
[Annotator "ChessBase"]
[PlyCount "83"]
[EventDate "2022.09.16"]
[EventType "swiss"]
[EventCountry "SLO"]
[SourceTitle "playchess.com"]
[Source "ChessBase"]
[SourceQuality "1"]
[TimeControl "5400+30"]

1. e4 {[%emt 0:00:21]} c5 {[%emt 0:00:38]} 2. Nf3 {[%emt 0:00:39]} e6 {[%emt 0:00:07]} 3. c3 {[%emt 0:01:30]} d5 {[%emt 0:01:46]} 4. e5 {[%emt 0:00:57]} Nc6 {[%emt 0:00:45]} 5. d4 {[%emt 0:00:53]} Bd7 {[%emt 0:00:42]} 6. Be2 {[%emt 0:02:17]} f6 {[%emt 0:02:22]} 7. O-O {[%emt 0:03:00]} fxe5 {[%emt 0:01:04]} 8. dxe5 {[%emt 0:03:40]} Qc7 {[%emt 0:00:50]} 9. c4 {[%emt 0:01:21]} Nxe5 {[%emt 0:11:30]} 10. cxd5 {[%emt 0:01:24]} O-O-O {[%emt 0:01:55]} 11. Nc3 {[%emt 0:05:42]} Nf6 {[%emt 0:09:33]} 12. dxe6 {[%emt 0:21:49]} Bc6 {[%emt 0:05:40]} 13. Qb3 {[%emt 0:27:46]} Bd6 {[%emt 0:22:29]} 14. Nb5 {[%emt 0:03:03]} Bxb5 {[%emt 0:00:48]} 15. Qxb5 {[%emt 0:01:17]} Rhe8 {[%emt 0:07:01]} 16. Nxe5 {[%emt 0:06:22]} Bxe5 {[%emt 0:00:17]} 17. Be3 {[%emt 0:00:47]} Rxe6 {[%emt 0:02:17]} 18. Rac1 {[%emt 0:01:12]} Bxh2+ {[%emt 0:08:32]} 19. Kh1 {[%emt 0:01:09]} Rc6 {[%emt 0:04:01]} 20. Bf3 {[%emt 0:04:42]} a6 {[%emt 0:02:04]} 21. Qc4 {[%emt 0:00:43]} Bd6 {[%emt 0:04:31]} 22. Bxc6 {[%emt 0:00:42]} Qxc6 {[%emt 0:00:06]} 23. Bxc5 {[%emt 0:00:58]} Bxc5 {[%emt 0:00:23]} 24. Qxc5 {[%emt 0:00:10]} Qxc5 {[%emt 0:00:04]} 25. Rxc5+ {[%emt 0:00:09]} Kb8 {[%emt 0:00:00]} 26. Rc2 {[%emt 0:00:25]} Rd5 {[%emt 0:00:46]} 27. g3 {[%emt 0:00:32]} Re5 {[%emt 0:01:33]} 28. Kg2 {[%emt 0:00:25]} h5 {[%emt 0:00:33]} 29. Rd1 {[%emt 0:01:47]} Re8 {[%emt 0:00:52]} 30. Rdd2 {[%emt 0:00:38]} Rh8 {[%emt 0:00:58]} 31. Rd4 {[%emt 0:00:39]} Re8 {[%emt 0:00:14]} 32. Kf1 {[%emt 0:01:09]} Rf8 {[%emt 0:00:32]} 33. Re2 {[%emt 0:00:48]} Rf7 {[%emt 0:00:23]} 34. Kg2 {[%emt 0:01:06]} Kc7 {[%emt 0:00:52]} 35. Re5 {[%emt 0:00:38]} Kc6 {[%emt 0:01:24]} 36. b4 {[%emt 0:01:08]} Kb6 {[%emt 0:00:43]} 37. a4 {[%emt 0:00:29]} Rc7 {[%emt 0:00:22]} 38. Rg5 {[%emt 0:00:28]} Re7 {[%emt 0:01:03]} 39. Rc4 {[%emt 0:00:46]} Rd7 {[%emt 0:00:52]} 40. Rc8 {[%emt 0:00:54]} Rd4 {[%emt 0:00:48]} 41. Rxg7 {[%emt 0:00:17]} Rxb4 {[%emt 0:00:20]} 42. Rg6 {[%emt 0:00:07]} 1-0

[Event "26th Hit Open-A 2022"]
[Site "Nova Gorica"]
[Date "2022.09.17"]
[Round "2.18"]
[White "Rozman, Monika"]
[Black "Nyysti, Sampsa"]
[Result "1-0"]
[ECO "B20"]
[WhiteElo "2111"]
[BlackElo "2363"]
[Annotator "ChessBase"]
[PlyCount "129"]
[EventDate "2022.09.16"]
[EventType "swiss"]
[EventCountry "SLO"]
[SourceTitle "playchess.com"]
[Source "ChessBase"]
[SourceQuality "1"]
[TimeControl "5400+30"]

1. e4 {[%emt 0:00:03]} c5 {[%emt 0:00:06]} 2. d3 {[%emt 0:00:04]} Nc6 {[%emt 0:01:13]} 3. g3 {[%emt 0:00:04]} g6 {[%emt 0:00:36]} 4. Bg2 {[%emt 0:00:09]} Bg7 {[%emt 0:00:14]} 5. f4 {[%emt 0:00:32]} e6 {[%emt 0:01:21]} 6. Nf3 {[%emt 0:01:17]} Nge7 {[%emt 0:00:28]} 7. O-O {[%emt 0:00:55]} O-O {[%emt 0:00:46]} 8. c3 {[%emt 0:00:27]} d5 {[%emt 0:03:33]} 9. e5 {[%emt 0:02:29]} Nf5 {[%emt 0:04:48]} 10. g4 {[%emt 0:03:02]} Nfe7 {[%emt 0:05:05]} 11. Na3 {[%emt 0:02:18]} f6 {[%emt 0:10:21]} 12. d4 {[%emt 0:04:35]} cxd4 {[%emt 0:02:21]} 13. cxd4 {[%emt 0:02:28]} Qb6 {[%emt 0:00:28]} 14. Kh1 {[%emt 0:05:04]} Bd7 {[%emt 0:05:19]} 15. Nc2 {[%emt 0:00:38]} Nb4 {[%emt 0:10:40]} 16. Nxb4 {[%emt 0:06:12]} Qxb4 {[%emt 0:00:03]} 17. Bd2 {[%emt 0:00:17]} Qb6 {[%emt 0:03:28]} 18. Qe1 {[%emt 0:02:42]} Bb5 {[%emt 0:03:15]} 19. Rg1 {[%emt 0:02:54]} fxe5 {[%emt 0:03:41]} 20. Ba5 {[%emt 0:12:17]} Qa6 {[%emt 0:01:23]} 21. fxe5 {[%emt 0:00:39]} Be2 {[%emt 0:05:58]} 22. Ng5 {[%emt 0:01:34]} Nc6 {[%emt 0:11:21]} 23. Nxe6 {[%emt 0:02:33]} Nxa5 {[%emt 0:01:44]} 24. Nc7 {[%emt 0:01:06]} Qd3 {[%emt 0:00:30]} 25. Qxa5 {[%emt 0:01:24]} Bf3 {[%emt 0:06:05]} 26. Qc3 {[%emt 0:07:04]} Qxc3 {[%emt 0:04:18]} 27. bxc3 {[%emt 0:00:06]} Rac8 {[%emt 0:01:47]} 28. Nxd5 {[%emt 0:04:14]} Bxd5 {[%emt 0:01:42]} 29. Bxd5+ {[%emt 0:00:02]} Kh8 {[%emt 0:00:08]} 30. Rg3 {[%emt 0:04:12]} b5 {[%emt 0:02:10]} 31. Rb1 {[%emt 0:03:16]} Rb8 {[%emt 0:00:26]} 32. Rf3 {[%emt 0:02:37]} Rfd8 {[%emt 0:00:36]} 33. Bf7 {[%emt 0:03:43]} b4 {[%emt 0:00:26]} 34. Rxb4 {[%emt 0:03:22]} Rxb4 {[%emt 0:00:09]} 35. cxb4 {[%emt 0:00:06]} Rxd4 {[%emt 0:00:17]} 36. e6 {[%emt 0:00:57]} Bf8 {[%emt 0:03:58]} 37. Bxg6 {[%emt 0:03:44]} Bxb4 {[%emt 0:00:05]} 38. Bf5 {[%emt 0:00:30]} Rd1+ {[%emt 0:02:55]} 39. Kg2 {[%emt 0:00:01]} Rd2+ {[%emt 0:00:14]} 40. Rf2 {[%emt 0:04:53]} Rxf2+ {[%emt 0:00:11]} 41. Kxf2 {[%emt 0:00:01]} Kg7 {[%emt 0:00:16]} 42. g5 {[%emt 0:02:23]} Be7 {[%emt 0:00:55]} 43. h4 {[%emt 0:00:56]} h6 {[%emt 0:01:13]} 44. Kf3 {[%emt 0:01:05]} hxg5 {[%emt 0:00:57]} 45. h5 {[%emt 0:00:07]} g4+ {[%emt 0:02:29]} 46. Bxg4 {[%emt 0:01:33]} Bg5 {[%emt 0:02:28]} 47. Ke4 {[%emt 0:01:23]} Kf6 {[%emt 0:00:02]} 48. a4 {[%emt 0:01:44]} a5 {[%emt 0:01:25]} 49. Kd5 {[%emt 0:00:07]} Bf4 {[%emt 0:00:04]} 50. Kc6 {[%emt 0:00:26]} Ke7 {[%emt 0:00:02]} 51. Kb5 {[%emt 0:02:36]} Bd2 {[%emt 0:00:04]} 52. h6 {[%emt 0:01:21]} Bxh6 {[%emt 0:00:03]} 53. Kxa5 {[%emt 0:00:02]} Kd6 {[%emt 0:00:41]} 54. Kb5 {[%emt 0:02:40]} Bg5 {[%emt 0:00:59]} 55. a5 {[%emt 0:00:47]} Bh4 {[%emt 0:01:13]} 56. Kc4 {[%emt 0:03:28]} Be1 {[%emt 0:00:47]} 57. a6 {[%emt 0:00:30]} Bf2 {[%emt 0:00:04]} 58. Kd3 {[%emt 0:00:12]} Bc5 {[%emt 0:01:03]} 59. Ke4 {[%emt 0:00:11]} Kc6 {[%emt 0:00:33]} 60. Ke5 {[%emt 0:00:40]} Kb6 {[%emt 0:00:30]} 61. Be2 {[%emt 0:00:18]} Be7 {[%emt 0:00:25]} 62. Kf5 {[%emt 0:00:25]} Kc7 {[%emt 0:00:28]} 63. Kg6 {[%emt 0:00:17]} Bc5 {[%emt 0:00:06]} 64. Kf7 {[%emt 0:00:10]} Kd8 {[%emt 0:00:14]} 65. a7 {[%emt 0:01:19]} 1-0

[Event "26th Hit Open-A 2022"]
[Site "Nova Gorica"]
[Date "2022.09.17"]
[Round "2.19"]
[White "Rakesh Kumar Jena"]
[Black "Centrih, Aleks"]
[Result "1-0"]
[ECO "D02"]
[WhiteElo "2321"]
[BlackElo "2095"]
[Annotator "ChessBase"]
[PlyCount "87"]
[EventDate "2022.09.16"]
[EventType "swiss"]
[EventCountry "SLO"]
[SourceTitle "playchess.com"]
[Source "ChessBase"]
[SourceQuality "1"]
[TimeControl "5400+30"]

1. d4 {[%emt 0:00:03]} d5 {[%emt 0:00:33]} 2. Nf3 {[%emt 0:00:07]} Nf6 {[%emt 0:00:06]} 3. Bf4 {[%emt 0:00:05]} c5 {[%emt 0:00:05]} 4. e3 {[%emt 0:00:02]} Nc6 {[%emt 0:00:06]} 5. Nbd2 {[%emt 0:00:04]} cxd4 {[%emt 0:00:19]} 6. exd4 {[%emt 0:00:09]} Bf5 {[%emt 0:00:08]} 7. c3 {[%emt 0:00:53]} e6 {[%emt 0:00:06]} 8. Qb3 {[%emt 0:08:10]} Qc8 {[%emt 0:00:07]} 9. Ne5 {[%emt 0:08:57]} Be7 {[%emt 0:08:03]} 10. Nxc6 {[%emt 0:11:29]} bxc6 {[%emt 0:00:07]} 11. Qa4 {[%emt 0:00:18]} a5 {[%emt 0:18:28]} 12. Be2 {[%emt 0:11:42]} O-O {[%emt 0:01:59]} 13. O-O {[%emt 0:00:16]} Nd7 {[%emt 0:17:55]} 14. Rfc1 {[%emt 0:12:32]} Nb6 {[%emt 0:09:44]} 15. Qb3 {[%emt 0:00:50]} Qd8 {[%emt 0:00:31]} 16. a4 {[%emt 0:02:23]} c5 {[%emt 0:08:45]} 17. Bb5 {[%emt 0:04:47]} c4 {[%emt 0:08:27]} 18. Qd1 {[%emt 0:01:13]} Bd6 {[%emt 0:01:17]} 19. Bxd6 {[%emt 0:07:21]} Qxd6 {[%emt 0:00:05]} 20. Qf3 {[%emt 0:00:32]} Bd3 {[%emt 0:08:33]} 21. Re1 {[%emt 0:02:14]} Qc7 {[%emt 0:02:31]} 22. b3 {[%emt 0:04:07]} Rfc8 {[%emt 0:02:17]} 23. h4 {[%emt 0:04:31]} Qd8 {[%emt 0:05:46]} 24. Qg3 {[%emt 0:04:49]} h5 {[%emt 0:02:42]} 25. Re5 {[%emt 0:03:30]} Bg6 {[%emt 0:00:09]} 26. bxc4 {[%emt 0:00:31]} Nxc4 {[%emt 0:00:50]} 27. Nxc4 {[%emt 0:00:56]} dxc4 {[%emt 0:04:12]} 28. Rae1 {[%emt 0:03:58]} Qf6 {[%emt 0:00:07]} 29. Bd7 {[%emt 0:00:44]} Rd8 {[%emt 0:00:06]} 30. Bxe6 {[%emt 0:01:20]} fxe6 {[%emt 0:00:54]} 31. Rxe6 {[%emt 0:00:05]} Re8 {[%emt 0:00:31]} 32. Rxf6 {[%emt 0:00:06]} Rxe1+ {[%emt 0:00:04]} 33. Kh2 {[%emt 0:00:02]} gxf6 {[%emt 0:00:31]} 34. Qxg6+ {[%emt 0:00:04]} Kh8 {[%emt 0:00:14]} 35. Qxf6+ {[%emt 0:00:09]} Kg8 {[%emt 0:00:12]} 36. Qg6+ {[%emt 0:00:50]} Kf8 {[%emt 0:00:45]} 37. Qxh5 {[%emt 0:00:13]} Rae8 {[%emt 0:00:18]} 38. Qxa5 {[%emt 0:00:23]} R1e4 {[%emt 0:00:18]} 39. Qf5+ {[%emt 0:00:12]} Kg8 {[%emt 0:00:05]} 40. Qg5+ {[%emt 0:00:10]} Kh8 {[%emt 0:00:09]} 41. a5 {[%emt 0:00:04]} R4e7 {[%emt 0:01:21]} 42. a6 {[%emt 0:00:22]} Rh7 {[%emt 0:00:34]} 43. a7 {[%emt 0:00:28]} Rg8 {[%emt 0:00:07]} 44. Qxg8+ {[%emt 0:00:20]} 1-0

[Event "26th Hit Open-A 2022"]
[Site "Nova Gorica"]
[Date "2022.09.17"]
[Round "2.20"]
[White "Sharan, Rao"]
[Black "Callsen, Niklas"]
[Result "1-0"]
[ECO "A05"]
[WhiteElo "2312"]
[BlackElo "2079"]
[Annotator "ChessBase"]
[PlyCount "59"]
[EventDate "2022.09.16"]
[EventType "swiss"]
[EventCountry "SLO"]
[SourceTitle "playchess.com"]
[Source "ChessBase"]
[SourceQuality "1"]
[TimeControl "5400+30"]

1. Nf3 {[%emt 0:00:04]} Nf6 {[%emt 0:00:18]} 2. b3 {[%emt 0:00:05]} g6 {[%emt 0:00:20]} 3. Bb2 {[%emt 0:00:05]} Bg7 {[%emt 0:00:07]} 4. g3 {[%emt 0:00:24]} c5 {[%emt 0:03:00]} 5. Bg2 {[%emt 0:00:18]} d5 {[%emt 0:02:43]} 6. c4 {[%emt 0:05:20]} d4 {[%emt 0:03:17]} 7. b4 {[%emt 0:06:46]} Nfd7 {[%emt 0:02:31]} 8. a3 {[%emt 0:10:58]} O-O {[%emt 0:02:00]} 9. O-O {[%emt 0:02:54]} e5 {[%emt 0:03:30]} 10. d3 {[%emt 0:00:06]} a5 {[%emt 0:06:10]} 11. b5 {[%emt 0:07:10]} f5 {[%emt 0:07:10]} 12. Nbd2 {[%emt 0:00:05]} Re8 {[%emt 0:12:54]} 13. Ne1 {[%emt 0:08:01]} Bh6 {[%emt 0:03:00]} 14. Bc1 {[%emt 0:09:33]} Nf6 {[%emt 0:04:44]} 15. Nb3 {[%emt 0:04:09]} Bxc1 {[%emt 0:01:13]} 16. Qxc1 {[%emt 0:07:22]} a4 {[%emt 0:02:30]} 17. Nxc5 {[%emt 0:05:24]} Ra7 {[%emt 0:15:31]} 18. Qc2 {[%emt 0:08:30]} Qa5 {[%emt 0:02:16]} 19. Rb1 {[%emt 0:00:23]} b6 {[%emt 0:04:58]} 20. Na6 {[%emt 0:00:06]} Nxa6 {[%emt 0:00:44]} 21. bxa6 {[%emt 0:00:06]} Qxa6 {[%emt 0:03:05]} 22. Rb4 {[%emt 0:01:23]} Bd7 {[%emt 0:01:53]} 23. Qb2 {[%emt 0:01:02]} b5 {[%emt 0:03:54]} 24. cxb5 {[%emt 0:01:39]} Qb6 {[%emt 0:00:04]} 25. Nc2 {[%emt 0:03:16]} Ra5 {[%emt 0:00:39]} 26. Rb1 {[%emt 0:00:30]} Rc8 {[%emt 0:03:12]} 27. e3 {[%emt 0:03:11]} Rc3 {[%emt 0:06:19]} 28. exd4 {[%emt 0:05:19]} exd4 {[%emt 0:00:05]} 29. Nxd4 {[%emt 0:01:28]} Rxd3 {[%emt 0:00:25]} 30. Bf1 {[%emt 0:00:58]} 1-0

[Event "26th Hit Open-A 2022"]
[Site "Nova Gorica"]
[Date "2022.09.17"]
[Round "2.21"]
[White "Devnani Kush"]
[Black "Marn, Jan"]
[Result "1-0"]
[ECO "E01"]
[WhiteElo "2095"]
[BlackElo "2307"]
[Annotator "ChessBase"]
[PlyCount "69"]
[EventDate "2022.09.16"]
[EventType "swiss"]
[EventCountry "SLO"]
[SourceTitle "playchess.com"]
[Source "ChessBase"]
[SourceQuality "1"]
[TimeControl "5400+30"]

1. d4 {[%emt 0:08:11]} d5 {[%emt 0:00:09]} 2. c4 {[%emt 0:00:09]} e6 {[%emt 0:00:04]} 3. Nf3 {[%emt 0:00:05]} Nf6 {[%emt 0:00:12]} 4. g3 {[%emt 0:00:06]} Bb4+ {[%emt 0:00:45]} 5. Nbd2 {[%emt 0:00:10]} O-O {[%emt 0:00:26]} 6. Bg2 {[%emt 0:00:06]} c6 {[%emt 0:05:42]} 7. O-O {[%emt 0:01:46]} Nbd7 {[%emt 0:00:37]} 8. Qc2 {[%emt 0:01:58]} Re8 {[%emt 0:00:38]} 9. Rd1 {[%emt 0:12:24]} Qe7 {[%emt 0:00:19]} 10. e4 {[%emt 0:18:30]} dxe4 {[%emt 0:03:21]} 11. Nxe4 {[%emt 0:00:10]} h6 {[%emt 0:26:51]} 12. a3 {[%emt 0:07:07]} Ba5 {[%emt 0:01:02]} 13. Bf4 {[%emt 0:09:38]} Nxe4 {[%emt 0:12:05]} 14. Qxe4 {[%emt 0:00:07]} Nf6 {[%emt 0:00:03]} 15. Qe2 {[%emt 0:06:17]} Bc7 {[%emt 0:02:01]} 16. Bxc7 {[%emt 0:02:06]} Qxc7 {[%emt 0:00:06]} 17. Ne5 {[%emt 0:04:44]} Bd7 {[%emt 0:01:58]} 18. Rac1 {[%emt 0:01:57]} Rad8 {[%emt 0:03:09]} 19. c5 {[%emt 0:08:11]} Bc8 {[%emt 0:01:57]} 20. Nc4 {[%emt 0:02:38]} Re7 {[%emt 0:02:11]} 21. b4 {[%emt 0:03:06]} Red7 {[%emt 0:02:50]} 22. Qb2 {[%emt 0:03:41]} Nd5 {[%emt 0:22:36]} 23. a4 {[%emt 0:00:29]} Ne7 {[%emt 0:00:26]} 24. Ne5 {[%emt 0:03:12]} Qxe5 {[%emt 0:00:04]} 25. dxe5 {[%emt 0:00:03]} Rxd1+ {[%emt 0:00:06]} 26. Rxd1 {[%emt 0:00:10]} Rxd1+ {[%emt 0:00:05]} 27. Bf1 {[%emt 0:00:02]} Nd5 {[%emt 0:00:58]} 28. Kg2 {[%emt 0:00:42]} Bd7 {[%emt 0:00:57]} 29. Be2 {[%emt 0:01:28]} Re1 {[%emt 0:01:17]} 30. Bf3 {[%emt 0:00:23]} a6 {[%emt 0:00:56]} 31. h4 {[%emt 0:00:49]} Kf8 {[%emt 0:01:40]} 32. b5 {[%emt 0:02:13]} cxb5 {[%emt 0:01:01]} 33. Bxd5 {[%emt 0:00:14]} exd5 {[%emt 0:00:06]} 34. c6 {[%emt 0:00:03]} Re4 {[%emt 0:02:44]} 35. cxb7 {[%emt 0:00:36]} 1-0